[Event "*** Titled Tuesday Blitz"]
[Site "Chess.com"]
[Date "2020.11.10"]
[Round "2"]
[White "albi1999"]
[Black "AlexeiShirov"]
[Result "1-0"]
[WhiteElo "2548"]
[BlackElo "2785"]
[TimeControl "180+1"]
[EndTime "10:21:36 PST"]
[Termination "albi1999 won by resignation"]

1. d4 {[%clk 0:03:00.9]} 1... d5 {[%clk 0:02:59.6]} 2. Nf3 {[%clk 0:03:00.3]}
2... Nf6 {[%clk 0:02:58.6]} 3. c4 {[%clk 0:03:00.8]} 3... c6 {[%clk 0:02:58.3]}
4. Qb3 {[%clk 0:02:57]} 4... dxc4 {[%clk 0:02:52]} 5. Qxc4 {[%clk 0:02:57.7]}
5... Bg4 {[%clk 0:02:50.8]} 6. Nbd2 {[%clk 0:02:57]} 6... Nbd7 {[%clk
0:02:29.9]} 7. g3 {[%clk 0:02:57]} 7... Qa5 {[%clk 0:02:19.5]} 8. Bg2 {[%clk
0:02:51]} 8... e5 {[%clk 0:02:16.4]} 9. dxe5 {[%clk 0:02:32.8]} 9... Nxe5 {[%clk
0:02:16]} 10. Nxe5 {[%clk 0:02:18]} 10... Qxe5 {[%clk 0:02:15.7]} 11. O-O {[%clk
0:02:18.3]} 11... Bd6 {[%clk 0:02:04.7]} 12. Qb3 {[%clk 0:02:10.6]} 12... Rb8
{[%clk 0:01:59.9]} 13. Nc4 {[%clk 0:02:07.5]} 13... Be6 {[%clk 0:01:54.9]} 14.
Nxe5 {[%clk 0:01:24.3]} 14... Bxb3 {[%clk 0:01:54.1]} 15. Nxc6 {[%clk
0:01:18.2]} 15... bxc6 {[%clk 0:01:51.6]} 16. Bxc6+ {[%clk 0:01:16.5]} 16... Ke7
{[%clk 0:01:50.1]} 17. axb3 {[%clk 0:01:17.4]} 17... Bc5 {[%clk 0:01:47.4]} 18.
Ra5 {[%clk 0:01:12.3]} 18... Bb6 {[%clk 0:01:45]} 19. Ra4 {[%clk 0:01:05.8]}
19... Rbc8 {[%clk 0:01:43.8]} 20. Bf3 {[%clk 0:01:04.6]} 20... Rc2 {[%clk
0:01:39]} 21. Rd1 {[%clk 0:00:58.3]} 21... Rhc8 {[%clk 0:01:37.4]} 22. Bf4
{[%clk 0:00:57.4]} 22... Rxb2 {[%clk 0:01:33.9]} 23. b4 {[%clk 0:00:53.1]} 23...
h6 {[%clk 0:01:30.1]} 24. Bd6+ {[%clk 0:00:50.9]} 24... Ke6 {[%clk 0:01:28.4]}
25. Bc5 {[%clk 0:00:49]} 25... Bxc5 {[%clk 0:01:17.9]} 26. bxc5 {[%clk
0:00:49.9]} 26... Rxc5 {[%clk 0:01:17.4]} 27. Rxa7 {[%clk 0:00:50.1]} 27... g5
{[%clk 0:01:13.6]} 28. Ra6+ {[%clk 0:00:48.5]} 28... Ke7 {[%clk 0:01:12.5]} 29.
Ra7+ {[%clk 0:00:48.2]} 29... Ke6 {[%clk 0:01:12.4]} 30. h3 {[%clk 0:00:45.3]}
30... h5 {[%clk 0:01:11.1]} 31. Ra6+ {[%clk 0:00:37.6]} 31... Ke7 {[%clk
0:01:10.5]} 32. Rdd6 {[%clk 0:00:31.3]} 32... g4 {[%clk 0:01:02.2]} 33. Rxf6
{[%clk 0:00:27]} 33... gxf3 {[%clk 0:01:00.3]} 34. Rxf3 {[%clk 0:00:26.6]} 34...
Rxe2 {[%clk 0:00:57.3]} 35. Ra7+ {[%clk 0:00:26.6]} 35... Kd6 {[%clk 0:00:52.7]}
36. Raxf7 {[%clk 0:00:27]} 36... Rc1+ {[%clk 0:00:51.9]} 37. Kg2 {[%clk
0:00:27.5]} 37... Ree1 {[%clk 0:00:51.8]} 38. R3f6+ {[%clk 0:00:27]} 38... Ke5
{[%clk 0:00:51.6]} 39. Rf5+ {[%clk 0:00:27.1]} 39... Ke4 {[%clk 0:00:51.2]} 40.
Rf4+ {[%clk 0:00:26.9]} 40... Kd5 {[%clk 0:00:51]} 41. R7f5+ {[%clk 0:00:26.8]}
41... Ke6 {[%clk 0:00:51]} 42. Rxh5 {[%clk 0:00:26.9]} 42... Rg1+ {[%clk
0:00:50.8]} 43. Kf3 {[%clk 0:00:26.9]} 43... Rc3+ {[%clk 0:00:50.2]} 44. Kg4
{[%clk 0:00:26.8]} 44... Rf1 {[%clk 0:00:45.1]} 45. Ra5 {[%clk 0:00:26.2]} 45...
Rc2 {[%clk 0:00:43.4]} 46. Raf5 {[%clk 0:00:23.1]} 46... Rd2 {[%clk 0:00:41.3]}
47. h4 {[%clk 0:00:23.1]} 47... Ke7 {[%clk 0:00:41]} 48. h5 {[%clk 0:00:23.5]}
48... Rh1 {[%clk 0:00:40.3]} 49. Kg5 {[%clk 0:00:21.5]} 49... Rd8 {[%clk
0:00:39]} 50. Rf7+ {[%clk 0:00:21.3]} 50... Ke6 {[%clk 0:00:38.4]} 51. Rg7
{[%clk 0:00:20.8]} 51... Rh8 {[%clk 0:00:36.5]} 52. Rg6+ {[%clk 0:00:21.1]}
52... Ke5 {[%clk 0:00:35.9]} 53. h6 {[%clk 0:00:22]} 53... Rh2 {[%clk
0:00:34.4]} 54. Rf7 {[%clk 0:00:21.3]} 54... Ke4 {[%clk 0:00:31]} 55. Re6+
{[%clk 0:00:19.6]} 55... Kd5 {[%clk 0:00:30.8]} 56. Ref6 {[%clk 0:00:18.4]}
56... Ke4 {[%clk 0:00:29.5]} 57. g4 {[%clk 0:00:18.5]} 57... Ke5 {[%clk
0:00:28.5]} 58. Rf5+ {[%clk 0:00:18.7]} 58... Ke4 {[%clk 0:00:27.6]} 59. f4
{[%clk 0:00:19.2]} 59... Kf3 {[%clk 0:00:26.1]} 60. R5f6 {[%clk 0:00:17.6]}
60... Rg2 {[%clk 0:00:25.6]} 61. Kf5 {[%clk 0:00:17.4]} 61... Rxg4 {[%clk
0:00:25.1]} 62. Ke6 {[%clk 0:00:17.7]} 62... Rh4 {[%clk 0:00:23.6]} 63. f5
{[%clk 0:00:17.6]} 63... Kf4 {[%clk 0:00:22]} 64. Ke7 {[%clk 0:00:15.8]} 64...
Ke5 {[%clk 0:00:19.1]} 65. Re6+ {[%clk 0:00:15.4]} 65... Kf4 {[%clk 0:00:18.8]}
66. Rg6 {[%clk 0:00:14.7]} 66... R4xh6 {[%clk 0:00:16]} 67. Rxh6 {[%clk
0:00:14.7]} 67... Rxh6 {[%clk 0:00:15.8]} 68. f6 {[%clk 0:00:14.1]} 68... Kf5
{[%clk 0:00:15.5]} 69. Rf8 {[%clk 0:00:14.6]} 69... Rh7+ {[%clk 0:00:14.3]} 70.
f7 {[%clk 0:00:15]} 70... Kg6 {[%clk 0:00:11.5]} 71. Rg8+ {[%clk 0:00:14.5]} 1-0

[Event "*** Titled Tuesday Blitz"]
[Site "Chess.com"]
[Date "2020.11.10"]
[Round "2"]
[White "valeriocarnicelli"]
[Black "dropstoneDP"]
[Result "0-1"]
[WhiteElo "2567"]
[BlackElo "2911"]
[TimeControl "180+1"]
[EndTime "10:21:40 PST"]
[Termination "dropstoneDP won by resignation"]

1. e4 {[%clk 0:03:00.9]} 1... g6 {[%clk 0:02:57.2]} 2. d4 {[%clk 0:03:00.7]}
2... Bg7 {[%clk 0:02:57]} 3. Nc3 {[%clk 0:03:01.3]} 3... a6 {[%clk 0:02:56.6]}
4. Be3 {[%clk 0:03:01.8]} 4... b5 {[%clk 0:02:51.9]} 5. f3 {[%clk 0:03:00.9]}
5... Bb7 {[%clk 0:02:51.4]} 6. h4 {[%clk 0:03:00.9]} 6... h5 {[%clk 0:02:51.2]}
7. Nh3 {[%clk 0:03:01.2]} 7... d6 {[%clk 0:02:50.6]} 8. Ng5 {[%clk 0:03:01.3]}
8... Nd7 {[%clk 0:02:47.5]} 9. a4 {[%clk 0:02:59.2]} 9... b4 {[%clk 0:02:47.1]}
10. Bc4 {[%clk 0:02:59.5]} 10... e6 {[%clk 0:02:41.5]} 11. Ne2 {[%clk
0:02:59.6]} 11... Qe7 {[%clk 0:02:24]} 12. Nf4 {[%clk 0:02:59]} 12... Ngf6
{[%clk 0:02:13.2]} 13. Bxe6 {[%clk 0:02:26.9]} 13... Rf8 {[%clk 0:01:52]} 14.
Bxf7+ {[%clk 0:02:10.2]} 14... Rxf7 {[%clk 0:01:52.2]} 15. Nxg6 {[%clk
0:02:10.4]} 15... Qd8 {[%clk 0:01:51.2]} 16. Qd2 {[%clk 0:01:52.9]} 16... Nf8
{[%clk 0:01:51.2]} 17. Nxf7 {[%clk 0:01:51.8]} 17... Kxf7 {[%clk 0:01:51]} 18.
Nxf8 {[%clk 0:01:51.3]} 18... Qxf8 {[%clk 0:01:51.7]} 19. Qxb4 {[%clk
0:01:46.1]} 19... Rb8 {[%clk 0:01:52]} 20. Qb3+ {[%clk 0:01:37.9]} 20... Kg6
{[%clk 0:01:43.2]} 21. Qd3 {[%clk 0:01:34.8]} 21... Kf7 {[%clk 0:01:39.3]} 22.
O-O-O {[%clk 0:01:23.3]} 22... Qe8 {[%clk 0:01:25]} 23. Qc4+ {[%clk 0:01:08.1]}
23... d5 {[%clk 0:01:22.9]} 24. Qxc7+ {[%clk 0:01:03.7]} 24... Kg8 {[%clk
0:01:22.1]} 25. e5 {[%clk 0:00:59.3]} 25... Nh7 {[%clk 0:01:18.4]} 26. Rh3
{[%clk 0:00:41.1]} 26... Nf8 {[%clk 0:01:16.8]} 27. Rg3 {[%clk 0:00:37.9]} 27...
Ne6 {[%clk 0:01:17]} 28. Qa5 {[%clk 0:00:32.7]} 28... Kh8 {[%clk 0:01:06.9]} 29.
f4 {[%clk 0:00:32.4]} 29... Qf7 {[%clk 0:01:04.6]} 30. Qd2 {[%clk 0:00:28.8]}
30... Bc6 {[%clk 0:00:42.1]} 31. Qd3 {[%clk 0:00:17.8]} 31... Rf8 {[%clk
0:00:27.6]} 32. Rf1 {[%clk 0:00:14.8]} 32... Qf5 {[%clk 0:00:27.6]} 33. Qxf5
{[%clk 0:00:14.7]} 33... Rxf5 {[%clk 0:00:28.5]} 34. b3 {[%clk 0:00:13.4]} 34...
Kh7 {[%clk 0:00:27.7]} 35. Kd2 {[%clk 0:00:13.1]} 35... Bh6 {[%clk 0:00:28.3]}
36. Rgf3 {[%clk 0:00:12.9]} 36... Be8 {[%clk 0:00:27.5]} 37. g3 {[%clk
0:00:12.8]} 37... Ng7 {[%clk 0:00:22]} 38. a5 {[%clk 0:00:12.4]} 38... Bg6
{[%clk 0:00:20.7]} 39. c4 {[%clk 0:00:11.8]} 39... Rf8 {[%clk 0:00:20.6]} 40.
cxd5 {[%clk 0:00:11.1]} 40... Be4 {[%clk 0:00:21]} 41. R3f2 {[%clk 0:00:11.1]}
41... Bxd5 {[%clk 0:00:21.1]} 42. f5 {[%clk 0:00:11.6]} 42... Bxe3+ {[%clk
0:00:19.5]} 43. Kxe3 {[%clk 0:00:12.5]} 43... Rb8 {[%clk 0:00:19.8]} 44. Rb2
{[%clk 0:00:11]} 44... Rb4 {[%clk 0:00:17.3]} 45. Kd3 {[%clk 0:00:06.7]} 45...
Kg8 {[%clk 0:00:15]} 46. Kc3 {[%clk 0:00:06.7]} 46... Rb8 {[%clk 0:00:15.3]} 47.
b4 {[%clk 0:00:06.8]} 47... Rf8 {[%clk 0:00:15.3]} 48. f6 {[%clk 0:00:06.1]}
48... Ne6 {[%clk 0:00:15.4]} 49. b5 {[%clk 0:00:06.5]} 49... Rc8+ {[%clk
0:00:15.6]} 50. Kd2 {[%clk 0:00:06.5]} 50... axb5 {[%clk 0:00:11.7]} 51. Rxb5
{[%clk 0:00:07.4]} 51... Be4 {[%clk 0:00:11.9]} 52. d5 {[%clk 0:00:06.2]} 52...
Nd4 {[%clk 0:00:09.9]} 53. Rb4 {[%clk 0:00:06.5]} 53... Nf3+ {[%clk 0:00:10.4]}
54. Ke3 {[%clk 0:00:04.9]} 54... Bxd5 {[%clk 0:00:10.9]} 55. Rxf3 {[%clk
0:00:04]} 55... Kf7 {[%clk 0:00:11.5]} 56. Kd4 {[%clk 0:00:03.2]} 56... Bxf3
{[%clk 0:00:11.5]} 57. Rb6 {[%clk 0:00:03.3]} 57... Rc1 {[%clk 0:00:11.1]} 58.
e6+ {[%clk 0:00:03.4]} 58... Kxf6 {[%clk 0:00:11.3]} 59. a6 {[%clk 0:00:03.9]}
59... Ra1 {[%clk 0:00:10.3]} 60. Ke3 {[%clk 0:00:04.2]} 60... Bg4 {[%clk
0:00:10.2]} 61. Kf4 {[%clk 0:00:04.5]} 61... Bxe6 {[%clk 0:00:09.8]} 62. Ke3
{[%clk 0:00:02.4]} 62... Ra4 {[%clk 0:00:09.9]} 63. Kf3 {[%clk 0:00:02.2]} 63...
Ke5 {[%clk 0:00:10]} 64. Ke3 {[%clk 0:00:02.6]} 64... Ra3+ {[%clk 0:00:09.8]}
65. Kf2 {[%clk 0:00:03.1]} 65... Bg4 {[%clk 0:00:10]} 66. Rb5+ {[%clk
0:00:03.2]} 66... Kd4 {[%clk 0:00:10.5]} 67. Rb6 {[%clk 0:00:03.8]} 67... Ra2+
{[%clk 0:00:10.2]} 68. Kg1 {[%clk 0:00:04.2]} 68... Ke3 {[%clk 0:00:10.6]} 69.
Rf6 {[%clk 0:00:04.2]} 69... Bf3 {[%clk 0:00:10]} 70. g4 {[%clk 0:00:02.4]}
70... hxg4 {[%clk 0:00:09.9]} 71. h5 {[%clk 0:00:02.6]} 71... g3 {[%clk
0:00:09.8]} 0-1

[Event "*** Titled Tuesday Blitz"]
[Site "Chess.com"]
[Date "2020.11.10"]
[Round "2"]
[White "Sven_Tica"]
[Black "MrChampion_Coach"]
[Result "0-1"]
[WhiteElo "2689"]
[BlackElo "2496"]
[TimeControl "180+1"]
[EndTime "10:21:43 PST"]
[Termination "MrChampion_Coach won by resignation"]

1. d4 {[%clk 0:03:00.9]} 1... Nf6 {[%clk 0:02:39]} 2. c4 {[%clk 0:02:57.9]} 2...
e6 {[%clk 0:02:27]} 3. g3 {[%clk 0:02:52]} 3... d5 {[%clk 0:02:23.7]} 4. Bg2
{[%clk 0:02:52.3]} 4... dxc4 {[%clk 0:02:22.7]} 5. Qa4+ {[%clk 0:02:52.8]} 5...
Bd7 {[%clk 0:02:20.9]} 6. Qxc4 {[%clk 0:02:52.8]} 6... Bc6 {[%clk 0:02:21.2]} 7.
Nf3 {[%clk 0:02:50.4]} 7... Bd5 {[%clk 0:02:17.3]} 8. Qd3 {[%clk 0:02:49.1]}
8... Nc6 {[%clk 0:02:08.7]} 9. a3 {[%clk 0:02:44.8]} 9... Be4 {[%clk 0:02:05.4]}
10. Qd1 {[%clk 0:02:34.9]} 10... Nxd4 {[%clk 0:01:53.4]} 11. Qa4+ {[%clk
0:02:06.9]} 11... Bc6 {[%clk 0:01:39.3]} 12. Qxd4 {[%clk 0:02:03.4]} 12... Qxd4
{[%clk 0:01:38.1]} 13. Nxd4 {[%clk 0:02:04.3]} 13... Bxg2 {[%clk 0:01:37.6]} 14.
Rg1 {[%clk 0:02:05]} 14... Bd5 {[%clk 0:01:34.8]} 15. Nb5 {[%clk 0:02:05.1]}
15... Bd6 {[%clk 0:01:26.5]} 16. Bf4 {[%clk 0:02:01.2]} 16... e5 {[%clk
0:01:22.9]} 17. Bg5 {[%clk 0:02:01]} 17... Bc6 {[%clk 0:01:21.6]} 18. N1c3
{[%clk 0:01:57.8]} 18... a6 {[%clk 0:01:03]} 19. Nxd6+ {[%clk 0:01:57.6]} 19...
cxd6 {[%clk 0:01:03.9]} 20. Bxf6 {[%clk 0:01:58.3]} 20... gxf6 {[%clk
0:01:04.1]} 21. e4 {[%clk 0:01:59]} 21... Ke7 {[%clk 0:01:02.5]} 22. Ke2 {[%clk
0:01:57.6]} 22... Rac8 {[%clk 0:00:59.4]} 23. g4 {[%clk 0:01:56.2]} 23... Bb5+
{[%clk 0:00:58.7]} 24. Ke3 {[%clk 0:01:55.7]} 24... Bc4 {[%clk 0:00:56.6]} 25.
Rad1 {[%clk 0:01:53.9]} 25... Rc6 {[%clk 0:00:55.4]} 26. Rd2 {[%clk 0:01:52.5]}
26... Rhc8 {[%clk 0:00:54]} 27. f3 {[%clk 0:01:50.3]} 27... Rb6 {[%clk
0:00:54.2]} 28. Rgd1 {[%clk 0:01:36.9]} 28... Be6 {[%clk 0:00:45.8]} 29. Kf2
{[%clk 0:01:32.9]} 29... Rcc6 {[%clk 0:00:43.8]} 30. Kg3 {[%clk 0:01:31.4]}
30... Rb3 {[%clk 0:00:42.7]} 31. Re2 {[%clk 0:01:17.5]} 31... b5 {[%clk
0:00:38.7]} 32. Rdd2 {[%clk 0:00:54.9]} 32... a5 {[%clk 0:00:37.4]} 33. h4
{[%clk 0:00:38.5]} 33... Rc5 {[%clk 0:00:36.8]} 34. h5 {[%clk 0:00:37.7]} 34...
b4 {[%clk 0:00:35.8]} 35. axb4 {[%clk 0:00:36.7]} 35... axb4 {[%clk 0:00:36.4]}
36. Nd1 {[%clk 0:00:28.2]} 36... d5 {[%clk 0:00:25.9]} 37. exd5 {[%clk
0:00:25.5]} 37... Rxd5 {[%clk 0:00:26.4]} 38. Rxd5 {[%clk 0:00:13.3]} 38... Bxd5
{[%clk 0:00:27.2]} 39. Re3 {[%clk 0:00:11.8]} 39... Rxe3 {[%clk 0:00:19.3]} 40.
Nxe3 {[%clk 0:00:09.7]} 40... Be6 {[%clk 0:00:20]} 41. Kf2 {[%clk 0:00:09.6]}
41... Kd6 {[%clk 0:00:19.7]} 42. Ke2 {[%clk 0:00:07.3]} 42... Kc5 {[%clk
0:00:18.6]} 43. Kd3 {[%clk 0:00:04]} 43... Bd5 {[%clk 0:00:19.1]} 44. Ke2 {[%clk
0:00:04]} 44... Bc4+ {[%clk 0:00:18.4]} 45. Kd2 {[%clk 0:00:03.9]} 45... Bd5
{[%clk 0:00:17.4]} 46. Ke2 {[%clk 0:00:03.8]} 46... Ba2 {[%clk 0:00:12.5]} 47.
Nf5 {[%clk 0:00:02.8]} 47... Bb1 {[%clk 0:00:11.2]} 48. Ng7 {[%clk 0:00:02.4]}
48... Kc4 {[%clk 0:00:05.8]} 49. Ne8 {[%clk 0:00:02.7]} 49... Kb3 {[%clk
0:00:06.1]} 50. Nxf6 {[%clk 0:00:03.2]} 50... Kxb2 {[%clk 0:00:06.3]} 51. Nd7
{[%clk 0:00:03.2]} 51... e4 {[%clk 0:00:04.9]} 52. f4 {[%clk 0:00:01.9]} 52...
b3 {[%clk 0:00:04.2]} 53. Nc5 {[%clk 0:00:02.1]} 53... Kc3 {[%clk 0:00:02.9]}
54. Na4+ {[%clk 0:00:01.8]} 54... Kd4 {[%clk 0:00:03]} 55. Nc5 {[%clk
0:00:02.5]} 55... Bd3+ {[%clk 0:00:03.9]} 56. Kd2 {[%clk 0:00:03.4]} 56... e3+
{[%clk 0:00:04.3]} 57. Kc1 {[%clk 0:00:04.3]} 57... b2+ {[%clk 0:00:03.3]} 58.
Kxb2 {[%clk 0:00:05]} 58... e2 {[%clk 0:00:04.2]} 59. Nxd3 {[%clk 0:00:04.6]}
59... Kxd3 {[%clk 0:00:05.1]} 60. g5 {[%clk 0:00:05.3]} 60... e1=Q {[%clk
0:00:06]} 61. g6 {[%clk 0:00:05.5]} 61... Qc3+ {[%clk 0:00:06.9]} 0-1

[Event "*** Titled Tuesday Blitz"]
[Site "Chess.com"]
[Date "2020.11.10"]
[Round "2"]
[White "asms9699"]
[Black "Sanan_Sjugirov"]
[Result "1/2-1/2"]
[WhiteElo "2565"]
[BlackElo "2826"]
[TimeControl "180+1"]
[EndTime "10:21:45 PST"]
[Termination "Game drawn by stalemate"]

1. c4 {[%clk 0:03:00.9]} 1... Nf6 {[%clk 0:02:55.8]} 2. g3 {[%clk 0:03:01]} 2...
e6 {[%clk 0:02:55.3]} 3. Bg2 {[%clk 0:03:01.3]} 3... d5 {[%clk 0:02:55.4]} 4.
Nf3 {[%clk 0:03:01.8]} 4... dxc4 {[%clk 0:02:46.3]} 5. Qa4+ {[%clk 0:03:00.3]}
5... Nbd7 {[%clk 0:02:44.2]} 6. Qxc4 {[%clk 0:02:57.9]} 6... c5 {[%clk
0:02:42.7]} 7. Qb3 {[%clk 0:02:53.6]} 7... Rb8 {[%clk 0:02:28.7]} 8. a4 {[%clk
0:02:53]} 8... b6 {[%clk 0:02:27.8]} 9. d3 {[%clk 0:02:47.2]} 9... Bd6 {[%clk
0:02:25.7]} 10. Na3 {[%clk 0:02:46]} 10... a6 {[%clk 0:02:23.2]} 11. Nc4 {[%clk
0:02:20.8]} 11... Bc7 {[%clk 0:02:22.7]} 12. Bd2 {[%clk 0:02:20]} 12... O-O
{[%clk 0:02:20.8]} 13. O-O {[%clk 0:02:17.2]} 13... Bb7 {[%clk 0:02:19.2]} 14.
Rfc1 {[%clk 0:02:11.4]} 14... b5 {[%clk 0:01:59.4]} 15. axb5 {[%clk 0:02:07.4]}
15... axb5 {[%clk 0:02:00.3]} 16. Na5 {[%clk 0:02:01.1]} 16... Bd5 {[%clk
0:01:59.4]} 17. Qd1 {[%clk 0:01:40.7]} 17... Ra8 {[%clk 0:01:50.6]} 18. Qe1
{[%clk 0:01:23.4]} 18... b4 {[%clk 0:01:16.1]} 19. Nc4 {[%clk 0:01:20.1]} 19...
Rxa1 {[%clk 0:01:15.6]} 20. Rxa1 {[%clk 0:01:21]} 20... Bxc4 {[%clk 0:01:14.4]}
21. dxc4 {[%clk 0:01:21.9]} 21... Ne5 {[%clk 0:01:14.1]} 22. b3 {[%clk
0:01:11.8]} 22... Nxf3+ {[%clk 0:01:03.1]} 23. Bxf3 {[%clk 0:01:12.7]} 23... Be5
{[%clk 0:01:03.1]} 24. Rd1 {[%clk 0:01:03.6]} 24... Qa5 {[%clk 0:00:54.2]} 25.
Bg5 {[%clk 0:00:56.4]} 25... Qa2 {[%clk 0:00:44.7]} 26. Rd3 {[%clk 0:00:50.3]}
26... h6 {[%clk 0:00:30.8]} 27. Be3 {[%clk 0:00:49.5]} 27... Rc8 {[%clk
0:00:24.3]} 28. Qd2 {[%clk 0:00:40]} 28... Qa5 {[%clk 0:00:16.7]} 29. Kg2 {[%clk
0:00:35.4]} 29... Kh7 {[%clk 0:00:15.1]} 30. Qc2 {[%clk 0:00:32]} 30... Kg8
{[%clk 0:00:14.8]} 31. h4 {[%clk 0:00:26.8]} 31... Kf8 {[%clk 0:00:14.5]} 32.
Qd2 {[%clk 0:00:25.8]} 32... Ke7 {[%clk 0:00:14.1]} 33. Bf4 {[%clk 0:00:24.2]}
33... Bxf4 {[%clk 0:00:13]} 34. Qxf4 {[%clk 0:00:25.1]} 34... Qc7 {[%clk
0:00:13]} 35. Qe3 {[%clk 0:00:20.6]} 35... Nd7 {[%clk 0:00:12.5]} 36. Rd1 {[%clk
0:00:16.7]} 36... Rd8 {[%clk 0:00:09.7]} 37. Ra1 {[%clk 0:00:15.5]} 37... Ne5
{[%clk 0:00:09]} 38. Ra6 {[%clk 0:00:11.7]} 38... Kf8 {[%clk 0:00:04.8]} 39. Qf4
{[%clk 0:00:09.6]} 39... Ke7 {[%clk 0:00:02.3]} 40. Rc6 {[%clk 0:00:06.4]} 40...
Qb8 {[%clk 0:00:02.4]} 41. Rxc5 {[%clk 0:00:05.5]} 41... Nd7 {[%clk 0:00:02.3]}
42. Qxb8 {[%clk 0:00:04.5]} 42... Rxb8 {[%clk 0:00:03.2]} 43. Rc7 {[%clk
0:00:04.6]} 43... Kd8 {[%clk 0:00:02.7]} 44. Ra7 {[%clk 0:00:04.4]} 44... Nc5
{[%clk 0:00:02.9]} 45. Rxf7 {[%clk 0:00:03.6]} 45... Nxb3 {[%clk 0:00:03.3]} 46.
Rxg7 {[%clk 0:00:03.5]} 46... Nc5 {[%clk 0:00:03.2]} 47. Bh5 {[%clk 0:00:03.4]}
47... b3 {[%clk 0:00:02.7]} 48. Rg8+ {[%clk 0:00:02.5]} 48... Kc7 {[%clk
0:00:02.8]} 49. Rxb8 {[%clk 0:00:03.4]} 49... Kxb8 {[%clk 0:00:03.7]} 50. Bg6
{[%clk 0:00:04]} 50... Kc7 {[%clk 0:00:03.8]} 51. g4 {[%clk 0:00:04.3]} 51...
Kd6 {[%clk 0:00:03.8]} 52. f4 {[%clk 0:00:03]} 52... e5 {[%clk 0:00:03.1]} 53.
fxe5+ {[%clk 0:00:03.1]} 53... Kxe5 {[%clk 0:00:04]} 54. Kf3 {[%clk 0:00:03.6]}
54... b2 {[%clk 0:00:03.8]} 55. g5 {[%clk 0:00:03.1]} 55... hxg5 {[%clk
0:00:03.7]} 56. hxg5 {[%clk 0:00:04]} 56... Ne6 {[%clk 0:00:04.5]} 57. Bb1
{[%clk 0:00:03]} 57... Nxg5+ {[%clk 0:00:04.7]} 58. Ke3 {[%clk 0:00:03.6]} 58...
Ne6 {[%clk 0:00:04.9]} 59. Kd3 {[%clk 0:00:04]} 59... Nf4+ {[%clk 0:00:05.3]}
60. Kd2 {[%clk 0:00:04.4]} 60... Ne6 {[%clk 0:00:05.1]} 61. e3 {[%clk
0:00:04.9]} 61... Kd6 {[%clk 0:00:02.9]} 62. Kc3 {[%clk 0:00:05.4]} 62... Kc5
{[%clk 0:00:03.6]} 63. Bd3 {[%clk 0:00:05.9]} 63... b1=Q {[%clk 0:00:02.7]} 64.
Bxb1 {[%clk 0:00:05.7]} 64... Ng7 {[%clk 0:00:03.3]} 65. Bd3 {[%clk 0:00:06.1]}
65... Ne8 {[%clk 0:00:03.9]} 66. Be2 {[%clk 0:00:05.5]} 66... Nd6 {[%clk
0:00:04.5]} 67. Kd2 {[%clk 0:00:05.9]} 67... Nxc4+ {[%clk 0:00:03]} 68. Bxc4
{[%clk 0:00:05.4]} 68... Kxc4 {[%clk 0:00:03.9]} 69. Ke2 {[%clk 0:00:06]} 69...
Kd5 {[%clk 0:00:04.2]} 70. Kf3 {[%clk 0:00:06.7]} 70... Ke5 {[%clk 0:00:04.5]}
71. e4 {[%clk 0:00:07.3]} 71... Ke6 {[%clk 0:00:04.9]} 72. Kf4 {[%clk
0:00:08.2]} 72... Kf6 {[%clk 0:00:05.2]} 73. e5+ {[%clk 0:00:09.1]} 73... Ke6
{[%clk 0:00:05.6]} 74. Ke4 {[%clk 0:00:10]} 74... Ke7 {[%clk 0:00:06]} 75. Kf5
{[%clk 0:00:10.9]} 75... Kf7 {[%clk 0:00:06.3]} 76. e6+ {[%clk 0:00:11.8]} 76...
Ke7 {[%clk 0:00:06.6]} 77. Ke5 {[%clk 0:00:12.7]} 77... Ke8 {[%clk 0:00:07]} 78.
Kf6 {[%clk 0:00:13.6]} 78... Kf8 {[%clk 0:00:07.3]} 79. e7+ {[%clk 0:00:14.5]}
79... Ke8 {[%clk 0:00:07.7]} 80. Ke6 {[%clk 0:00:15.4]} 1/2-1/2